[Event "Early-Titled-Tuesday-Blitz-July-09-2024"]
[Site "Chess.com"]
[Date "2024.07.09"]
[Round "3"]
[White "Mysterio47"]
[Black "pinguino120"]
[Result "1-0"]
[WhiteElo "2745"]
[BlackElo "2344"]
[TimeControl "180+1"]
[EndTime "8:24:47 PDT"]
[Termination "Mysterio47 won by resignation"]

1. e4 {[%clk 0:03:00.9]} 1... g6 {[%clk 0:02:58.8]} 2. d4 {[%clk 0:03:00.8]}
2... c6 {[%clk 0:02:58.4]} 3. Nc3 {[%clk 0:03:01.6]} 3... Bg7 {[%clk 0:02:58.4]}
4. Be3 {[%clk 0:03:00.3]} 4... d5 {[%clk 0:02:58.4]} 5. e5 {[%clk 0:03:00.6]}
5... Nh6 {[%clk 0:02:58.6]} 6. h3 {[%clk 0:02:56.3]} 6... Nf5 {[%clk 0:02:58]}
7. Bf4 {[%clk 0:02:56.2]} 7... h5 {[%clk 0:02:50.2]} 8. Nf3 {[%clk 0:02:55.4]}
8... O-O {[%clk 0:02:40.4]} 9. Bd3 {[%clk 0:02:54.7]} 9... f6 {[%clk 0:02:40]}
10. O-O {[%clk 0:02:54.8]} 10... Na6 {[%clk 0:02:28.1]} 11. Bxa6 {[%clk
0:02:52.9]} 11... bxa6 {[%clk 0:02:29]} 12. Re1 {[%clk 0:02:53]} 12... Qb6
{[%clk 0:02:26.2]} 13. Na4 {[%clk 0:02:53.1]} 13... Qb4 {[%clk 0:02:22.8]} 14.
c3 {[%clk 0:02:53]} 14... Qa5 {[%clk 0:02:19.7]} 15. Nc5 {[%clk 0:02:52.7]}
15... Rb8 {[%clk 0:02:16.6]} 16. exf6 {[%clk 0:02:52.8]} 16... Bxf6 {[%clk
0:02:15.9]} 17. Bxb8 {[%clk 0:02:52.9]} 17... Nh4 {[%clk 0:02:08.9]} 18. Nxh4
{[%clk 0:02:52.4]} 18... Bxh4 {[%clk 0:02:09.8]} 19. Bg3 {[%clk 0:02:52.7]}
19... Bxg3 {[%clk 0:02:09.4]} 20. fxg3 {[%clk 0:02:53.6]} 20... Qc7 {[%clk
0:02:08.2]} 21. Qd3 {[%clk 0:02:49.4]} 21... Bf5 {[%clk 0:02:07.5]} 22. Qe3
{[%clk 0:02:50]} 22... Re8 {[%clk 0:02:06.4]} 23. Rf1 {[%clk 0:02:49.2]} 23...
e5 {[%clk 0:02:06.2]} 24. Rae1 {[%clk 0:02:49.5]} 24... e4 {[%clk 0:02:05.2]}
25. Qf4 {[%clk 0:02:48.8]} 25... Qb6 {[%clk 0:02:04.4]} 26. b4 {[%clk
0:02:48.8]} 26... e3 {[%clk 0:01:57.1]} 27. Rxe3 {[%clk 0:02:48.5]} 27... Re4
{[%clk 0:01:58]} 28. Nxe4 {[%clk 0:02:48.4]} 1-0

[Event "Early-Titled-Tuesday-Blitz-July-09-2024"]
[Site "Chess.com"]
[Date "2024.07.09"]
[Round "3"]
[White "RTchess367"]
[Black "el008"]
[Result "0-1"]
[WhiteElo "2282"]
[BlackElo "2552"]
[TimeControl "180+1"]
[EndTime "8:25:44 PDT"]
[Termination "el008 won by resignation"]

1. e4 {[%clk 0:02:59]} 1... c5 {[%clk 0:03:00.2]} 2. Nf3 {[%clk 0:02:58.8]} 2...
e6 {[%clk 0:03:00.3]} 3. b3 {[%clk 0:02:54.3]} 3... a6 {[%clk 0:03:00.4]} 4. Bb2
{[%clk 0:02:54]} 4... b6 {[%clk 0:03:00.6]} 5. g3 {[%clk 0:02:52.6]} 5... Bb7
{[%clk 0:03:00.7]} 6. Nc3 {[%clk 0:02:48.6]} 6... Nf6 {[%clk 0:03:00.9]} 7. Qe2
{[%clk 0:02:47.6]} 7... b5 {[%clk 0:03:00.3]} 8. e5 {[%clk 0:02:43.2]} 8... Nd5
{[%clk 0:02:57.6]} 9. Ne4 {[%clk 0:02:38.7]} 9... f5 {[%clk 0:02:54.4]} 10. exf6
{[%clk 0:02:38.2]} 10... Nxf6 {[%clk 0:02:52.4]} 11. Nxf6+ {[%clk 0:02:24.8]}
11... gxf6 {[%clk 0:02:53.3]} 12. Bg2 {[%clk 0:02:24.8]} 12... h5 {[%clk
0:02:48.5]} 13. h4 {[%clk 0:02:23.2]} 13... Nc6 {[%clk 0:02:47.2]} 14. O-O
{[%clk 0:02:19.2]} 14... Qe7 {[%clk 0:02:45.4]} 15. Rfe1 {[%clk 0:02:15]} 15...
O-O-O {[%clk 0:02:45.5]} 16. d4 {[%clk 0:02:11.7]} 16... Rg8 {[%clk 0:02:40.1]}
17. c4 {[%clk 0:02:03.4]} 17... bxc4 {[%clk 0:02:33.4]} 18. bxc4 {[%clk
0:02:02.6]} 18... cxd4 {[%clk 0:02:31.6]} 19. Nxd4 {[%clk 0:02:01.1]} 19... Qc5
{[%clk 0:02:30.2]} 20. Nxc6 {[%clk 0:01:54.7]} 20... Bxc6 {[%clk 0:02:31.1]} 21.
Bxf6 {[%clk 0:01:53.4]} 21... Rxg3 {[%clk 0:02:29.9]} 22. Qf1 {[%clk 0:01:20.7]}
22... Rxg2+ {[%clk 0:02:29.1]} 23. Qxg2 {[%clk 0:01:21.6]} 23... Bxg2 {[%clk
0:02:29.3]} 24. Kxg2 {[%clk 0:01:22.5]} 24... Be7 {[%clk 0:02:27.4]} 25. Bxe7
{[%clk 0:01:19]} 25... Qxe7 {[%clk 0:02:28.3]} 0-1

[Event "Early-Titled-Tuesday-Blitz-July-09-2024"]
[Site "Chess.com"]
[Date "2024.07.09"]
[Round "3"]
[White "Ginger_GM"]
[Black "AsaHoffmann"]
[Result "1-0"]
[WhiteElo "2603"]
[BlackElo "2379"]
[TimeControl "180+1"]
[EndTime "8:25:50 PDT"]
[Termination "Ginger_GM won by resignation"]

1. a4 {[%clk 0:03:00.9]} 1... e5 {[%clk 0:02:57.2]} 2. e3 {[%clk 0:02:59.3]}
2... Nf6 {[%clk 0:02:55.9]} 3. d4 {[%clk 0:02:58.8]} 3... Nc6 {[%clk 0:02:48.9]}
4. Nf3 {[%clk 0:02:54.4]} 4... e4 {[%clk 0:02:44.9]} 5. Nfd2 {[%clk 0:02:53.9]}
5... d5 {[%clk 0:02:44.6]} 6. c4 {[%clk 0:02:52.5]} 6... Be7 {[%clk 0:02:30.4]}
7. Nc3 {[%clk 0:02:46.8]} 7... Be6 {[%clk 0:02:26.2]} 8. a5 {[%clk 0:02:43.6]}
8... a6 {[%clk 0:02:25.7]} 9. Be2 {[%clk 0:02:37.6]} 9... O-O {[%clk 0:02:25]}
10. g4 {[%clk 0:02:36.3]} 10... Qd7 {[%clk 0:02:20.8]} 11. g5 {[%clk 0:02:34.9]}
11... Ne8 {[%clk 0:02:20.2]} 12. cxd5 {[%clk 0:02:32.6]} 12... Bxd5 {[%clk
0:02:19.1]} 13. h4 {[%clk 0:02:25.9]} 13... Bb4 {[%clk 0:02:11.5]} 14. Qc2
{[%clk 0:02:12.6]} 14... f5 {[%clk 0:02:06.6]} 15. Nxd5 {[%clk 0:02:12]} 15...
Bxa5 {[%clk 0:01:56.3]} 16. Nf4 {[%clk 0:02:03.8]} 16... Nd6 {[%clk 0:01:49.3]}
17. Qb3+ {[%clk 0:02:01.3]} 17... Kh8 {[%clk 0:01:47.9]} 18. h5 {[%clk
0:01:44.8]} 18... b5 {[%clk 0:01:46]} 19. Ng6+ {[%clk 0:01:44.2]} 1-0

[Event "Early-Titled-Tuesday-Blitz-July-09-2024"]
[Site "Chess.com"]
[Date "2024.07.09"]
[Round "3"]
[White "Naruto75_3"]
[Black "campochess"]
[Result "1-0"]
[WhiteElo "2547"]
[BlackElo "2257"]
[TimeControl "180+1"]
[EndTime "8:26:09 PDT"]
[Termination "Naruto75_3 won by resignation"]

1. d4 {[%clk 0:03:00.9]} 1... Nf6 {[%clk 0:02:57.8]} 2. c4 {[%clk 0:03:00.4]}
2... g6 {[%clk 0:02:57.3]} 3. Nc3 {[%clk 0:02:59.2]} 3... d5 {[%clk 0:02:57.2]}
4. cxd5 {[%clk 0:02:58.7]} 4... Nxd5 {[%clk 0:02:57.1]} 5. e4 {[%clk 0:02:58.8]}
5... Nxc3 {[%clk 0:02:57]} 6. bxc3 {[%clk 0:02:59.4]} 6... Bg7 {[%clk 0:02:57]}
7. Be3 {[%clk 0:02:58.7]} 7... O-O {[%clk 0:02:56.7]} 8. Rc1 {[%clk 0:02:58.9]}
8... c5 {[%clk 0:02:56.2]} 9. Be2 {[%clk 0:02:59.2]} 9... Qa5 {[%clk 0:02:55.8]}
10. Qd2 {[%clk 0:02:53.6]} 10... Rd8 {[%clk 0:02:55]} 11. Nf3 {[%clk 0:02:52.3]}
11... Nc6 {[%clk 0:02:53.9]} 12. d5 {[%clk 0:02:49.8]} 12... Bg4 {[%clk
0:02:47.3]} 13. O-O {[%clk 0:02:48.7]} 13... Bxf3 {[%clk 0:02:45.4]} 14. Bxf3
{[%clk 0:02:49.6]} 14... Ne5 {[%clk 0:02:43.1]} 15. Be2 {[%clk 0:02:49.5]} 15...
Rac8 {[%clk 0:02:36.9]} 16. f4 {[%clk 0:02:48.4]} 16... Nd7 {[%clk 0:02:35.8]}
17. Qc2 {[%clk 0:02:42.3]} 17... b5 {[%clk 0:02:30.2]} 18. Qb1 {[%clk 0:02:38]}
18... b4 {[%clk 0:02:28.5]} 19. cxb4 {[%clk 0:02:36.8]} 19... cxb4 {[%clk
0:02:26]} 20. Bg4 {[%clk 0:02:33.7]} 20... Rxc1 {[%clk 0:02:23.4]} 21. Rxc1
{[%clk 0:02:34.6]} 21... Nf6 {[%clk 0:02:22.3]} 22. Bf3 {[%clk 0:02:34.4]} 22...
Rb8 {[%clk 0:02:15]} 23. Qb3 {[%clk 0:02:32.7]} 23... Qa6 {[%clk 0:02:06]} 24.
e5 {[%clk 0:02:31.3]} 24... Ne8 {[%clk 0:02:04.1]} 25. Bc5 {[%clk 0:02:30.6]}
25... Rb7 {[%clk 0:01:54.5]} 26. d6 {[%clk 0:02:28.1]} 26... exd6 {[%clk
0:01:53.1]} 27. Bxb7 {[%clk 0:02:26.7]} 27... Qxb7 {[%clk 0:01:50.4]} 28. exd6
{[%clk 0:02:26.6]} 28... a5 {[%clk 0:01:45.4]} 29. Qe3 {[%clk 0:02:24.3]} 29...
Nf6 {[%clk 0:01:43.9]} 30. Bd4 {[%clk 0:02:23]} 30... Qb5 {[%clk 0:01:40.7]} 31.
Rc8+ {[%clk 0:02:13.9]} 1-0

[Event "Early-Titled-Tuesday-Blitz-July-09-2024"]
[Site "Chess.com"]
[Date "2024.07.09"]
[Round "3"]
[White "HypeMan111"]
[Black "Chaubunagungamaug1"]
[Result "0-1"]
[WhiteElo "2287"]
[BlackElo "2487"]
[TimeControl "180+1"]
[EndTime "8:26:13 PDT"]
[Termination "Chaubunagungamaug1 won by resignation"]

1. e4 {[%clk 0:03:00.9]} 1... c5 {[%clk 0:02:57.2]} 2. Nf3 {[%clk 0:02:58.4]}
2... Nc6 {[%clk 0:02:57.4]} 3. d4 {[%clk 0:02:55.6]} 3... cxd4 {[%clk
0:02:58.3]} 4. Nxd4 {[%clk 0:02:55.1]} 4... Nf6 {[%clk 0:02:58.8]} 5. Nc3 {[%clk
0:02:54.5]} 5... e6 {[%clk 0:02:59]} 6. Ndb5 {[%clk 0:02:50.2]} 6... Bc5 {[%clk
0:02:55.7]} 7. Nd6+ {[%clk 0:02:41.8]} 7... Ke7 {[%clk 0:02:54.1]} 8. Bf4 {[%clk
0:02:41.7]} 8... e5 {[%clk 0:02:53.9]} 9. Nf5+ {[%clk 0:02:41.9]} 9... Kf8
{[%clk 0:02:54.3]} 10. Bg5 {[%clk 0:02:42.8]} 10... d6 {[%clk 0:02:54.7]} 11.
Bc4 {[%clk 0:02:22.4]} 11... Be6 {[%clk 0:02:53.9]} 12. Bb3 {[%clk 0:02:15.7]}
12... h6 {[%clk 0:02:53.2]} 13. Bh4 {[%clk 0:01:59.4]} 13... g5 {[%clk
0:02:44.7]} 14. Bg3 {[%clk 0:01:58.8]} 14... Nxe4 {[%clk 0:02:19.3]} 15. Nxe4
{[%clk 0:01:55.5]} 15... Bxf5 {[%clk 0:02:19.5]} 16. Qf3 {[%clk 0:01:51.5]}
16... Nd4 {[%clk 0:02:15.2]} 0-1

[Event "Early-Titled-Tuesday-Blitz-July-09-2024"]
[Site "Chess.com"]
[Date "2024.07.09"]
[Round "3"]
[White "Caleb_Klenoff"]
[Black "BillCoe"]
[Result "1-0"]
[WhiteElo "2387"]
[BlackElo "2046"]
[TimeControl "180+1"]
[EndTime "8:26:15 PDT"]
[Termination "Caleb_Klenoff won by checkmate"]

1. e4 {[%clk 0:03:00.9]} 1... c5 {[%clk 0:03:00]} 2. d4 {[%clk 0:02:39.1]} 2...
cxd4 {[%clk 0:02:59.2]} 3. c3 {[%clk 0:02:38.7]} 3... dxc3 {[%clk 0:02:59.5]} 4.
Nxc3 {[%clk 0:02:39.6]} 4... Nc6 {[%clk 0:02:59.2]} 5. Nf3 {[%clk 0:02:34.9]}
5... e6 {[%clk 0:02:58.6]} 6. Bc4 {[%clk 0:02:32]} 6... Nge7 {[%clk 0:02:58.1]}
7. Bg5 {[%clk 0:02:23.2]} 7... h6 {[%clk 0:02:58.3]} 8. Nb5 {[%clk 0:02:21.1]}
8... d5 {[%clk 0:02:33.9]} 9. exd5 {[%clk 0:01:59.4]} 9... exd5 {[%clk 0:02:33]}
10. Bf4 {[%clk 0:01:40.8]} 10... Qa5+ {[%clk 0:01:32.4]} 11. Kf1 {[%clk
0:01:38.8]} 11... Ng6 {[%clk 0:01:23.9]} 12. Nc7+ {[%clk 0:01:38.3]} 12... Ke7
{[%clk 0:01:17]} 13. Nxd5+ {[%clk 0:01:36.2]} 13... Ke8 {[%clk 0:01:11.6]} 14.
Nc7+ {[%clk 0:01:33.3]} 14... Ke7 {[%clk 0:01:11.2]} 15. Qd6# {[%clk 0:01:32.9]}
1-0

[Event "Early-Titled-Tuesday-Blitz-July-09-2024"]
[Site "Chess.com"]
[Date "2024.07.09"]
[Round "3"]
[White "Paladin61"]
[Black "Jospem"]
[Result "0-1"]
[WhiteElo "2754"]
[BlackElo "3110"]
[TimeControl "180+1"]
[EndTime "8:26:26 PDT"]
[Termination "Jospem won by resignation"]

1. e4 {[%clk 0:02:59.6]} 1... c5 {[%clk 0:02:58.8]} 2. Nf3 {[%clk 0:02:58.2]}
2... d6 {[%clk 0:02:59.3]} 3. d4 {[%clk 0:02:58.2]} 3... cxd4 {[%clk 0:02:54.8]}
4. Qxd4 {[%clk 0:02:59.1]} 4... a6 {[%clk 0:02:54.9]} 5. h3 {[%clk 0:02:49.2]}
5... Nc6 {[%clk 0:02:54.6]} 6. Qd3 {[%clk 0:02:49.6]} 6... g6 {[%clk 0:02:52.9]}
7. Nc3 {[%clk 0:02:48.6]} 7... Bg7 {[%clk 0:02:53.1]} 8. Be2 {[%clk 0:02:49]}
8... Nf6 {[%clk 0:02:53.3]} 9. O-O {[%clk 0:02:47.7]} 9... O-O {[%clk
0:02:53.7]} 10. Nd5 {[%clk 0:02:45]} 10... Nd7 {[%clk 0:02:52.9]} 11. c3 {[%clk
0:02:44]} 11... e6 {[%clk 0:02:51.3]} 12. Ne3 {[%clk 0:02:40.9]} 12... Nc5
{[%clk 0:02:51.3]} 13. Qc2 {[%clk 0:02:40.4]} 13... Qc7 {[%clk 0:02:49.7]} 14.
Rd1 {[%clk 0:02:38]} 14... f5 {[%clk 0:02:41.6]} 15. exf5 {[%clk 0:02:36.7]}
15... gxf5 {[%clk 0:02:42.5]} 16. Nf1 {[%clk 0:02:36.3]} 16... Ne4 {[%clk
0:02:41.2]} 17. g3 {[%clk 0:02:13.4]} 17... d5 {[%clk 0:02:26.9]} 18. c4 {[%clk
0:01:31.1]} 18... Qb6 {[%clk 0:02:18.6]} 19. Ne3 {[%clk 0:01:11.5]} 19... d4
{[%clk 0:02:15]} 20. Ng2 {[%clk 0:01:06.9]} 20... Nb4 {[%clk 0:02:08.3]} 21. Qb3
{[%clk 0:01:01.3]} 21... Nc5 {[%clk 0:02:07.5]} 0-1

[Event "Early-Titled-Tuesday-Blitz-July-09-2024"]
[Site "Chess.com"]
[Date "2024.07.09"]
[Round "3"]
[White "Witty_Alien"]
[Black "MikeWizard"]
[Result "1-0"]
[WhiteElo "2397"]
[BlackElo "2072"]
[TimeControl "180+1"]
[EndTime "8:26:26 PDT"]
[Termination "Witty_Alien won by resignation"]

1. e4 {[%clk 0:03:00.9]} 1... d6 {[%clk 0:02:59.4]} 2. d4 {[%clk 0:03:00.6]}
2... Nf6 {[%clk 0:02:59.4]} 3. Nc3 {[%clk 0:03:01.1]} 3... Nbd7 {[%clk
0:02:59.2]} 4. h4 {[%clk 0:03:01]} 4... e5 {[%clk 0:02:55.8]} 5. Nf3 {[%clk
0:03:00.9]} 5... h5 {[%clk 0:02:49]} 6. Ng5 {[%clk 0:03:00.6]} 6... Nb6 {[%clk
0:02:45]} 7. dxe5 {[%clk 0:02:59.3]} 7... Ng4 {[%clk 0:02:33.8]} 8. a4 {[%clk
0:02:43.7]} 8... Nxe5 {[%clk 0:02:26.8]} 9. a5 {[%clk 0:02:41.5]} 9... Nbd7
{[%clk 0:02:16]} 10. f4 {[%clk 0:02:32.6]} 10... Ng4 {[%clk 0:02:14.2]} 11. Bc4
{[%clk 0:01:56.7]} 11... Qf6 {[%clk 0:01:55.4]} 12. Bxf7+ {[%clk 0:01:54.4]}
12... Qxf7 {[%clk 0:01:55.2]} 13. Nxf7 {[%clk 0:01:54.1]} 13... Kxf7 {[%clk
0:01:55.2]} 14. a6 {[%clk 0:01:44.6]} 14... Ndf6 {[%clk 0:01:47.1]} 15. e5
{[%clk 0:01:41]} 15... dxe5 {[%clk 0:01:46.4]} 16. fxe5 {[%clk 0:01:40.8]} 16...
Nxe5 {[%clk 0:01:46.4]} 17. O-O {[%clk 0:01:32.8]} 17... Bc5+ {[%clk 0:01:42.9]}
18. Kh1 {[%clk 0:01:33.4]} 18... Bg4 {[%clk 0:01:35.2]} 19. Qd5+ {[%clk
0:01:32.3]} 1-0

[Event "Early-Titled-Tuesday-Blitz-July-09-2024"]
[Site "Chess.com"]
[Date "2024.07.09"]
[Round "3"]
[White "kritipatel"]
[Black "IC3S2"]
[Result "0-1"]
[WhiteElo "2143"]
[BlackElo "2539"]
[TimeControl "180+1"]
[EndTime "8:26:41 PDT"]
[Termination "IC3S2 won by resignation"]

1. e4 {[%clk 0:03:00.9]} 1... e5 {[%clk 0:02:58.7]} 2. Nf3 {[%clk 0:03:00.4]}
2... Nc6 {[%clk 0:02:58.9]} 3. Bc4 {[%clk 0:03:00.7]} 3... Nf6 {[%clk
0:02:58.6]} 4. d3 {[%clk 0:03:01.1]} 4... h6 {[%clk 0:02:58.3]} 5. c3 {[%clk
0:02:59.6]} 5... d6 {[%clk 0:02:58.8]} 6. Nbd2 {[%clk 0:03:00]} 6... g5 {[%clk
0:02:58.7]} 7. b4 {[%clk 0:02:56.7]} 7... Bg7 {[%clk 0:02:55.9]} 8. a4 {[%clk
0:02:53.7]} 8... O-O {[%clk 0:02:50.4]} 9. Nf1 {[%clk 0:02:46.8]} 9... d5 {[%clk
0:02:49.9]} 10. exd5 {[%clk 0:02:43.8]} 10... Nxd5 {[%clk 0:02:50.6]} 11. Ng3
{[%clk 0:02:32.9]} 11... g4 {[%clk 0:01:59]} 12. Nd2 {[%clk 0:02:24.5]} 12...
Nxc3 {[%clk 0:01:31.4]} 13. Qb3 {[%clk 0:02:10]} 13... e4 {[%clk 0:01:29.2]} 14.
Bb2 {[%clk 0:01:55.7]} 14... Nd4 {[%clk 0:01:25.1]} 15. Bxf7+ {[%clk 0:01:22.7]}
15... Rxf7 {[%clk 0:01:15]} 16. Qc4 {[%clk 0:01:18.4]} 16... Nc2+ {[%clk
0:01:13.1]} 17. Kf1 {[%clk 0:01:17.1]} 17... Ne3+ {[%clk 0:01:11.6]} 0-1

[Event "Early-Titled-Tuesday-Blitz-July-09-2024"]
[Site "Chess.com"]
[Date "2024.07.09"]
[Round "3"]
[White "rezamahdavi2008"]
[Black "JEHUBNER"]
[Result "1-0"]
[WhiteElo "2939"]
[BlackElo "2019"]
[TimeControl "180+1"]
[EndTime "8:26:47 PDT"]
[Termination "rezamahdavi2008 won by checkmate"]

1. e4 {[%clk 0:03:00.9]} 1... c5 {[%clk 0:03:00.3]} 2. Nf3 {[%clk 0:03:00.7]}
2... Nc6 {[%clk 0:03:00.9]} 3. d4 {[%clk 0:03:01]} 3... cxd4 {[%clk 0:03:01.8]}
4. Nxd4 {[%clk 0:03:01.8]} 4... g6 {[%clk 0:03:02.4]} 5. c4 {[%clk 0:03:01.5]}
5... Bg7 {[%clk 0:03:02.9]} 6. Be3 {[%clk 0:03:02.2]} 6... Nf6 {[%clk
0:03:03.2]} 7. Nc3 {[%clk 0:03:02.1]} 7... d6 {[%clk 0:03:02.8]} 8. Be2 {[%clk
0:03:02.6]} 8... a6 {[%clk 0:03:00.5]} 9. O-O {[%clk 0:03:02.7]} 9... O-O {[%clk
0:02:59.8]} 10. h3 {[%clk 0:03:03.1]} 10... Bd7 {[%clk 0:02:57.2]} 11. Nc2
{[%clk 0:02:57.3]} 11... Rc8 {[%clk 0:02:55.7]} 12. b3 {[%clk 0:02:57.6]} 12...
Nb8 {[%clk 0:02:43.9]} 13. Qd3 {[%clk 0:02:55.5]} 13... Bc6 {[%clk 0:02:44]} 14.
Rac1 {[%clk 0:02:53.6]} 14... Nbd7 {[%clk 0:02:44.5]} 15. f3 {[%clk 0:02:43.7]}
15... Ne5 {[%clk 0:02:40.4]} 16. Qd2 {[%clk 0:02:43.2]} 16... Nh5 {[%clk
0:02:29.3]} 17. Bf2 {[%clk 0:02:38.4]} 17... Qd7 {[%clk 0:02:12.8]} 18. f4
{[%clk 0:02:33.6]} 18... Nxf4 {[%clk 0:02:02.1]} 19. Qxf4 {[%clk 0:02:32.8]}
19... f5 {[%clk 0:02:00.8]} 20. exf5 {[%clk 0:02:30.2]} 20... Rxf5 {[%clk
0:02:00.7]} 21. Qe3 {[%clk 0:02:27.6]} 21... Rf7 {[%clk 0:01:57.5]} 22. Nd4
{[%clk 0:02:27.4]} 22... Rcf8 {[%clk 0:01:56.6]} 23. Nd5 {[%clk 0:02:25.7]}
23... Qd8 {[%clk 0:01:46]} 24. Ne6 {[%clk 0:02:25.6]} 24... Qa5 {[%clk
0:01:40.5]} 25. Nxf8 {[%clk 0:02:25.4]} 25... Rxf8 {[%clk 0:01:41.4]} 26. Nxe7+
{[%clk 0:02:25.6]} 26... Kh8 {[%clk 0:01:40.9]} 27. Nxc6 {[%clk 0:02:26.5]}
27... Nxc6 {[%clk 0:01:40.3]} 28. Bf3 {[%clk 0:02:25.5]} 28... Ne5 {[%clk
0:01:37.7]} 29. Bd5 {[%clk 0:02:25.5]} 29... Qxa2 {[%clk 0:01:31.1]} 30. Bg3
{[%clk 0:02:25.8]} 30... Re8 {[%clk 0:01:30.1]} 31. Rce1 {[%clk 0:02:24.3]}
31... b5 {[%clk 0:01:25.2]} 32. Qa7 {[%clk 0:02:24.2]} 32... bxc4 {[%clk
0:01:23.5]} 33. bxc4 {[%clk 0:02:24.2]} 33... Rc8 {[%clk 0:01:16.5]} 34. Bxe5
{[%clk 0:02:19.8]} 34... Bxe5 {[%clk 0:01:07]} 35. Rxe5 {[%clk 0:02:19.3]} 35...
dxe5 {[%clk 0:01:05.6]} 36. Qe7 {[%clk 0:02:20.2]} 36... h5 {[%clk 0:00:57.7]}
37. Rf8+ {[%clk 0:02:18.6]} 37... Rxf8 {[%clk 0:00:57.6]} 38. Qxf8+ {[%clk
0:02:19.5]} 38... Kh7 {[%clk 0:00:58.4]} 39. Bg8+ {[%clk 0:02:20.4]} 39... Kh8
{[%clk 0:00:57.3]} 40. Bf7+ {[%clk 0:02:21.3]} 40... Kh7 {[%clk 0:00:57.5]} 41.
Qg8+ {[%clk 0:02:22.2]} 41... Kh6 {[%clk 0:00:57.5]} 42. Qxg6# {[%clk
0:02:23.1]} 1-0

[Event "Early-Titled-Tuesday-Blitz-July-09-2024"]
[Site "Chess.com"]
[Date "2024.07.09"]
[Round "3"]
[White "SVijayalakshmi"]
[Black "NM_Antelacus"]
[Result "1-0"]
[WhiteElo "2555"]
[BlackElo "2289"]
[TimeControl "180+1"]
[EndTime "8:26:49 PDT"]
[Termination "SVijayalakshmi won by resignation"]

1. Nf3 {[%clk 0:03:00.9]} 1... Nf6 {[%clk 0:02:58.9]} 2. g3 {[%clk 0:03:01.7]}
2... b6 {[%clk 0:02:58.2]} 3. Bg2 {[%clk 0:03:01.7]} 3... Bb7 {[%clk 0:02:58.5]}
4. O-O {[%clk 0:03:02.2]} 4... e6 {[%clk 0:02:58.5]} 5. d4 {[%clk 0:03:02.3]}
5... Be7 {[%clk 0:02:57.5]} 6. c4 {[%clk 0:03:02.4]} 6... O-O {[%clk 0:02:57.2]}
7. Nc3 {[%clk 0:03:02.7]} 7... Ne4 {[%clk 0:02:56.8]} 8. Qc2 {[%clk 0:03:00.7]}
8... f5 {[%clk 0:02:56.8]} 9. Rd1 {[%clk 0:02:59.4]} 9... d6 {[%clk 0:02:54.7]}
10. d5 {[%clk 0:02:59.4]} 10... Nxc3 {[%clk 0:02:52.5]} 11. Qxc3 {[%clk
0:02:59.4]} 11... e5 {[%clk 0:02:52.3]} 12. e4 {[%clk 0:02:57.2]} 12... fxe4
{[%clk 0:02:34.7]} 13. Nd2 {[%clk 0:02:54]} 13... Bc8 {[%clk 0:02:32.9]} 14.
Nxe4 {[%clk 0:02:53.5]} 14... Bg4 {[%clk 0:02:32]} 15. Re1 {[%clk 0:02:50.6]}
15... Nd7 {[%clk 0:02:30.6]} 16. Be3 {[%clk 0:02:48.9]} 16... Nc5 {[%clk
0:02:28.4]} 17. Nd2 {[%clk 0:02:44.3]} 17... a5 {[%clk 0:02:25.3]} 18. b3 {[%clk
0:02:43.4]} 18... Bg5 {[%clk 0:02:23.8]} 19. a3 {[%clk 0:02:41.1]} 19... Bxe3
{[%clk 0:02:22.2]} 20. Rxe3 {[%clk 0:02:41.3]} 20... Qf6 {[%clk 0:02:20.9]} 21.
Rf1 {[%clk 0:02:40.7]} 21... Qh6 {[%clk 0:01:54.2]} 22. b4 {[%clk 0:02:39.2]}
22... axb4 {[%clk 0:01:53.7]} 23. axb4 {[%clk 0:02:39.4]} 23... Nd7 {[%clk
0:01:53.2]} 24. Ne4 {[%clk 0:02:36.5]} 24... Nf6 {[%clk 0:01:49.7]} 25. c5
{[%clk 0:02:35.3]} 25... Nxe4 {[%clk 0:01:47.6]} 26. Rxe4 {[%clk 0:02:30.3]}
26... bxc5 {[%clk 0:01:43.7]} 27. Rxg4 {[%clk 0:02:27.7]} 27... cxb4 {[%clk
0:01:42.3]} 28. Rxb4 {[%clk 0:02:23.4]} 28... Rf7 {[%clk 0:01:34.9]} 29. Rb7
{[%clk 0:02:21.8]} 29... Rc8 {[%clk 0:01:29.4]} 30. Qe3 {[%clk 0:02:14.9]} 30...
Qf6 {[%clk 0:01:23.1]} 31. Rc1 {[%clk 0:02:11.6]} 31... Rcf8 {[%clk 0:01:10.9]}
32. Rcxc7 {[%clk 0:01:58.5]} 32... Qxf2+ {[%clk 0:01:07]} 33. Qxf2 {[%clk
0:01:57.7]} 1-0

[Event "Early-Titled-Tuesday-Blitz-July-09-2024"]
[Site "Chess.com"]
[Date "2024.07.09"]
[Round "3"]
[White "GrumbleBruno"]
[Black "Szachulec75"]
[Result "1-0"]
[WhiteElo "2471"]
[BlackElo "2249"]
[TimeControl "180+1"]
[EndTime "8:26:55 PDT"]
[Termination "GrumbleBruno won by resignation"]

1. e4 {[%clk 0:03:00.9]} 1... d6 {[%clk 0:02:58.1]} 2. d4 {[%clk 0:03:00]} 2...
Nf6 {[%clk 0:02:58.6]} 3. Bd3 {[%clk 0:03:00.4]} 3... c6 {[%clk 0:02:58.7]} 4.
c3 {[%clk 0:03:00.7]} 4... e5 {[%clk 0:02:56.5]} 5. f4 {[%clk 0:03:01.2]} 5...
Qb6 {[%clk 0:02:52.4]} 6. Nf3 {[%clk 0:03:01.1]} 6... Bg4 {[%clk 0:02:52.3]} 7.
Na3 {[%clk 0:02:29.6]} 7... Nbd7 {[%clk 0:02:23.1]} 8. Nc4 {[%clk 0:02:19.9]}
8... Qc7 {[%clk 0:02:23.1]} 9. fxe5 {[%clk 0:02:20.1]} 9... dxe5 {[%clk
0:02:19.9]} 10. h3 {[%clk 0:02:20.4]} 10... Bxf3 {[%clk 0:02:15.9]} 11. Qxf3
{[%clk 0:02:20.4]} 11... b5 {[%clk 0:02:12.6]} 12. Nxe5 {[%clk 0:02:18.7]} 12...
Nxe5 {[%clk 0:02:11.8]} 13. dxe5 {[%clk 0:02:19.1]} 13... Qxe5 {[%clk
0:02:10.7]} 14. Bf4 {[%clk 0:02:19]} 14... Qc5 {[%clk 0:02:04.1]} 15. Be3 {[%clk
0:02:12.1]} 15... Qd6 {[%clk 0:01:55.3]} 16. O-O-O {[%clk 0:01:51.6]} 16... Qc7
{[%clk 0:01:47.4]} 17. Bxb5 {[%clk 0:01:20.5]} 17... cxb5 {[%clk 0:01:23.4]} 18.
e5 {[%clk 0:01:20.3]} 18... Rc8 {[%clk 0:01:23.9]} 19. exf6 {[%clk 0:01:18.2]}
19... b4 {[%clk 0:01:22.3]} 20. Bd4 {[%clk 0:01:08.6]} 1-0